[Event "Titled Tuesday Blitz November 08 Early 2022"]
[White "Derjabin, Ilja"]
[Black "Deac, Bogdan-Daniel"]
[WhiteFideId "14104768"]
[BlackFideId "1226380"]
[WhiteElo "2312"]
[BlackElo "2648"]
[Result "0-1"]
[Round "03"]
[TimeControl "180+1"]
[Date "2022.11.09"]
[WhiteClock "0:00:03"]
[BlackClock "0:00:04"]

1. d4 {[%clk 0:03:00]}  Nf6 {[%clk 0:02:59]} 2. c4 {[%clk 0:02:58]}  e6 {[%clk 0:03:00]} 3. Nc3 {[%clk 0:02:58]}  Bb4 {[%clk 0:03:00]} 4. a3 {[%clk 0:02:58]}  Bxc3+ {[%clk 0:02:59]} 5. bxc3 {[%clk 0:02:59]}  Nc6 {[%clk 0:02:59]} 6. f3 {[%clk 0:02:58]}  b6 {[%clk 0:02:58]} 7. e4 {[%clk 0:02:57]}  Na5 {[%clk 0:02:58]} 8. e5 {[%clk 0:02:55]}  Ng8 {[%clk 0:02:56]} 9. Nh3 {[%clk 0:02:55]}  Ba6 {[%clk 0:02:53]} 10. Bg5 {[%clk 0:02:51]}  Ne7 {[%clk 0:02:45]} 11. f4 {[%clk 0:02:45]}  d6 {[%clk 0:02:19]} 12. Qf3 {[%clk 0:02:31]}  Bb7 {[%clk 0:01:18]} 13. Qh5 {[%clk 0:02:17]}  Qd7 {[%clk 0:01:14]} 14. Be2 {[%clk 0:02:12]}  Bxg2 {[%clk 0:00:38]} 15. Rg1 {[%clk 0:02:10]}  g6 {[%clk 0:00:38]} 16. Qg4 {[%clk 0:01:56]}  Bxh3 {[%clk 0:00:38]} 17. Qxh3 {[%clk 0:01:56]}  O-O-O {[%clk 0:00:38]} 18. Bd3 {[%clk 0:01:30]}  h5 {[%clk 0:00:35]} 19. Qf3 {[%clk 0:01:23]}  Kb8 {[%clk 0:00:31]} 20. Rb1 {[%clk 0:01:19]}  d5 {[%clk 0:00:23]} 21. c5 {[%clk 0:01:14]}  Nf5 {[%clk 0:00:11]} 22. Bxf5 {[%clk 0:01:02]}  exf5 {[%clk 0:00:10]} 23. cxb6 {[%clk 0:00:21]}  cxb6 {[%clk 0:00:07]} 24. Bxd8 {[%clk 0:00:21]}  Rxd8 {[%clk 0:00:07]} 25. Kf2 {[%clk 0:00:22]}  Nc4 {[%clk 0:00:06]} 26. Ra1 {[%clk 0:00:18]}  Nd2 {[%clk 0:00:05]} 27. Qd3 {[%clk 0:00:14]}  Ne4+ {[%clk 0:00:05]} 28. Kg2 {[%clk 0:00:13]}  Rc8 {[%clk 0:00:06]} 29. Rgc1 {[%clk 0:00:12]}  Rc4 {[%clk 0:00:06]} 30. a4 {[%clk 0:00:09]}  Rxa4 {[%clk 0:00:05]} 31. Rxa4 {[%clk 0:00:05]}  Qxa4 {[%clk 0:00:06]} 32. c4 {[%clk 0:00:06]}  Qc6 {[%clk 0:00:05]} 33. Rc2 {[%clk 0:00:03]}  a5 {[%clk 0:00:04]} 34. cxd5 {[%clk 0:00:03]}  Qxd5 {[%clk 0:00:04]} 35. Kh3 {[%clk 0:00:04]}  g5 {[%clk 0:00:03]} 36. Qa6 {[%clk 0:00:03]}  g4+ {[%clk 0:00:03]} 37. Kh4 {[%clk 0:00:03]}  Qd8+ {[%clk 0:00:03]} 38. Kxh5 {[%clk 0:00:03]}  Qh8# {[%clk 0:00:04]} 0-1


[Site "https://www.chess.com"]

[Event "Titled Tuesday Blitz November 08 Early 2022"]
[White "Durarbayli, Vasif"]
[Black "Martinez Alcantara, Jose Eduardo"]
[WhiteFideId "13402935"]
[BlackFideId "3805662"]
[WhiteElo "2586"]
[BlackElo "2705"]
[Result "1-0"]
[Round "03"]
[TimeControl "180+1"]
[Date "2022.11.08"]
[WhiteClock "0:00:11"]
[BlackClock "0:00:20"]

1. e4 {[%clk 0:03:00]}  e5 {[%clk 0:02:59]} 2. Nf3 {[%clk 0:03:01]}  Nc6 {[%clk 0:03:00]} 3. Bb5 {[%clk 0:03:01]}  a6 {[%clk 0:03:00]} 4. Ba4 {[%clk 0:03:01]}  Nf6 {[%clk 0:03:00]} 5. d3 {[%clk 0:03:00]}  d6 {[%clk 0:02:59]} 6. O-O {[%clk 0:02:58]}  g6 {[%clk 0:02:59]} 7. c3 {[%clk 0:02:57]}  Bg7 {[%clk 0:03:00]} 8. h3 {[%clk 0:02:58]}  O-O {[%clk 0:03:00]} 9. Be3 {[%clk 0:02:58]}  b5 {[%clk 0:02:56]} 10. Bc2 {[%clk 0:02:58]}  Bb7 {[%clk 0:02:55]} 11. Nbd2 {[%clk 0:02:57]}  Nb8 {[%clk 0:02:52]} 12. Re1 {[%clk 0:02:43]}  Nbd7 {[%clk 0:02:51]} 13. d4 {[%clk 0:02:38]}  Re8 {[%clk 0:02:42]} 14. Qb1 {[%clk 0:02:37]}  exd4 {[%clk 0:02:39]} 15. cxd4 {[%clk 0:02:36]}  c5 {[%clk 0:02:40]} 16. d5 {[%clk 0:02:32]}  c4 {[%clk 0:02:39]} 17. Bd4 {[%clk 0:02:23]}  Qc7 {[%clk 0:02:37]} 18. a4 {[%clk 0:02:11]}  Nc5 {[%clk 0:02:05]} 19. axb5 {[%clk 0:01:57]}  axb5 {[%clk 0:02:05]} 20. Rxa8 {[%clk 0:01:57]}  Rxa8 {[%clk 0:02:06]} 21. b4 {[%clk 0:01:50]}  cxb3 {[%clk 0:01:48]} 22. Nxb3 {[%clk 0:01:50]}  Nfd7 {[%clk 0:01:33]} 23. Nxc5 {[%clk 0:01:24]}  Nxc5 {[%clk 0:01:28]} 24. Bxg7 {[%clk 0:01:24]}  Kxg7 {[%clk 0:01:29]} 25. Qxb5 {[%clk 0:01:24]}  Qa5 {[%clk 0:01:21]} 26. Qb2+ {[%clk 0:01:12]}  Kg8 {[%clk 0:01:22]} 27. Qf6 {[%clk 0:01:06]}  Qd8 {[%clk 0:01:17]} 28. Qd4 {[%clk 0:01:02]}  Rc8 {[%clk 0:01:12]} 29. Bb1 {[%clk 0:00:53]}  Nb3 {[%clk 0:00:55]} 30. Qb2 {[%clk 0:00:48]}  Nc5 {[%clk 0:00:55]} 31. Qd4 {[%clk 0:00:36]}  Nb3 {[%clk 0:00:55]} 32. Qe3 {[%clk 0:00:36]}  Nc5 {[%clk 0:00:54]} 33. Qf4 {[%clk 0:00:31]}  Kg7 {[%clk 0:00:39]} 34. Rc1 {[%clk 0:00:25]}  f6 {[%clk 0:00:17]} 35. Nd4 {[%clk 0:00:17]}  Qe7 {[%clk 0:00:18]} 36. Qg4 {[%clk 0:00:13]}  Re8 {[%clk 0:00:16]} 37. Nf5+ {[%clk 0:00:13]}  Kf8 {[%clk 0:00:14]} 38. Nxe7 {[%clk 0:00:14]}  Kxe7 {[%clk 0:00:15]} 39. Rxc5 {[%clk 0:00:12]}  dxc5 {[%clk 0:00:16]} 40. Qe6+ {[%clk 0:00:12]}  Kd8 {[%clk 0:00:16]} 41. Qxf6+ {[%clk 0:00:11]}  Kc7 {[%clk 0:00:17]} 42. Qf7+ {[%clk 0:00:10]}  Kd8 {[%clk 0:00:17]} 43. Qxb7 {[%clk 0:00:11]}  Re5 {[%clk 0:00:18]} 44. Qb6+ {[%clk 0:00:11]}  Ke7 {[%clk 0:00:18]} 45. Qxc5+ {[%clk 0:00:11]}  Kf6 {[%clk 0:00:19]} 46. Qd4 {[%clk 0:00:12]}  g5 {[%clk 0:00:19]} 47. g3 {[%clk 0:00:12]}  g4 {[%clk 0:00:19]} 48. hxg4 {[%clk 0:00:12]}  h5 {[%clk 0:00:20]} 49. g5+ {[%clk 0:00:11]} 1-0


[Site "https://www.chess.com"]

[Event "Titled Tuesday Blitz November 08 Early 2022"]
[White "Ernst, Sipke"]
[Black "Namitbir Singh Walia"]
[WhiteFideId "1004689"]
[BlackFideId "35071068"]
[WhiteElo "2436"]
[BlackElo "2239"]
[Result "1/2-1/2"]
[Round "03"]
[TimeControl "180+1"]
[Date "2022.11.09"]
[WhiteClock "0:00:24"]
[BlackClock "0:00:05"]

1. d4 {[%clk 0:03:00]}  Nf6 {[%clk 0:02:57]} 2. Bg5 {[%clk 0:03:01]}  d5 {[%clk 0:02:56]} 3. c3 {[%clk 0:02:58]}  Nbd7 {[%clk 0:02:54]} 4. e3 {[%clk 0:02:58]}  h6 {[%clk 0:02:54]} 5. Bh4 {[%clk 0:02:57]}  e6 {[%clk 0:02:54]} 6. Nd2 {[%clk 0:02:56]}  Be7 {[%clk 0:02:54]} 7. Bd3 {[%clk 0:02:55]}  c5 {[%clk 0:02:54]} 8. f4 {[%clk 0:02:55]}  b6 {[%clk 0:02:52]} 9. Qf3 {[%clk 0:02:55]}  Bb7 {[%clk 0:02:52]} 10. Ne2 {[%clk 0:02:54]}  a6 {[%clk 0:02:52]} 11. O-O {[%clk 0:02:54]}  O-O {[%clk 0:02:40]} 12. Kh1 {[%clk 0:02:53]}  b5 {[%clk 0:02:38]} 13. g4 {[%clk 0:02:49]}  Ne4 {[%clk 0:02:22]} 14. Bxe7 {[%clk 0:02:38]}  Nxd2 {[%clk 0:02:11]} 15. Bxd8 {[%clk 0:02:38]}  Nxf3 {[%clk 0:02:10]} 16. Be7 {[%clk 0:02:32]}  Rfe8 {[%clk 0:02:09]} 17. Bxc5 {[%clk 0:02:25]}  Nxc5 {[%clk 0:02:07]} 18. Rxf3 {[%clk 0:02:24]}  Nxd3 {[%clk 0:02:06]} 19. b3 {[%clk 0:02:19]}  e5 {[%clk 0:01:28]} 20. fxe5 {[%clk 0:02:19]}  Nxe5 {[%clk 0:01:27]} 21. dxe5 {[%clk 0:02:16]}  d4 {[%clk 0:01:27]} 22. Nxd4 {[%clk 0:02:16]}  Rac8 {[%clk 0:01:22]} 23. Rc1 {[%clk 0:01:57]}  Rxe5 {[%clk 0:01:20]} 24. Kg2 {[%clk 0:01:57]}  Rce8 {[%clk 0:01:10]} 25. Re1 {[%clk 0:01:52]}  Rc8 {[%clk 0:00:57]} 26. Rc1 {[%clk 0:01:51]}  Bxf3+ {[%clk 0:00:56]} 27. Kxf3 {[%clk 0:01:51]}  g6 {[%clk 0:00:56]} 28. h4 {[%clk 0:01:51]}  Kg7 {[%clk 0:00:56]} 29. e4 {[%clk 0:01:42]}  Rec5 {[%clk 0:00:55]} 30. Ne2 {[%clk 0:01:41]}  f6 {[%clk 0:00:53]} 31. Ke3 {[%clk 0:01:41]}  h5 {[%clk 0:00:52]} 32. gxh5 {[%clk 0:01:33]}  Rxh5 {[%clk 0:00:51]} 33. Rh1 {[%clk 0:01:26]}  Kf7 {[%clk 0:00:50]} 34. Rd1 {[%clk 0:01:10]}  Rxh4 {[%clk 0:00:47]} 35. Rd7+ {[%clk 0:01:10]}  Kg8 {[%clk 0:00:45]} 36. Rd6 {[%clk 0:01:10]}  Rh3+ {[%clk 0:00:43]} 37. Kd4 {[%clk 0:00:59]}  Rh2 {[%clk 0:00:40]} 38. Kd3 {[%clk 0:00:49]}  Kg7 {[%clk 0:00:35]} 39. Rxa6 {[%clk 0:00:47]}  Rd8+ {[%clk 0:00:26]} 40. Nd4 {[%clk 0:00:47]}  Rh3+ {[%clk 0:00:22]} 41. Ke2 {[%clk 0:00:47]}  Re8 {[%clk 0:00:19]} 42. Ne6+ {[%clk 0:00:43]}  Kf7 {[%clk 0:00:18]} 43. Nc5 {[%clk 0:00:43]}  Rxc3 {[%clk 0:00:17]} 44. b4 {[%clk 0:00:43]}  Rc4 {[%clk 0:00:17]} 45. a3 {[%clk 0:00:38]}  f5 {[%clk 0:00:17]} 46. Rb6 {[%clk 0:00:37]}  fxe4 {[%clk 0:00:16]} 47. Ke3 {[%clk 0:00:38]}  Rc3+ {[%clk 0:00:16]} 48. Kd4 {[%clk 0:00:38]}  Rxa3 {[%clk 0:00:16]} 49. Nxe4 {[%clk 0:00:38]}  Rd8+ {[%clk 0:00:15]} 50. Ke5 {[%clk 0:00:36]}  Re8+ {[%clk 0:00:13]} 51. Kf4 {[%clk 0:00:35]}  Kg7 {[%clk 0:00:13]} 52. Rb7+ {[%clk 0:00:33]}  Kh6 {[%clk 0:00:13]} 53. Nf6 {[%clk 0:00:33]}  Rh8 {[%clk 0:00:11]} 54. Ng4+ {[%clk 0:00:32]}  Kh5 {[%clk 0:00:10]} 55. Rxb5+ {[%clk 0:00:33]}  Kh4 {[%clk 0:00:10]} 56. Ne5 {[%clk 0:00:32]}  Rf8+ {[%clk 0:00:09]} 57. Ke4 {[%clk 0:00:32]}  Re8 {[%clk 0:00:09]} 58. Rb7 {[%clk 0:00:28]}  g5 {[%clk 0:00:08]} 59. Rh7+ {[%clk 0:00:27]}  Kg3 {[%clk 0:00:08]} 60. Rg7 {[%clk 0:00:27]}  Re3+ {[%clk 0:00:07]} 61. Kxe3 {[%clk 0:00:26]}  Rxe5+ {[%clk 0:00:08]} 62. Kd4 {[%clk 0:00:27]}  Rf5 {[%clk 0:00:08]} 63. Kc4 {[%clk 0:00:26]}  g4 {[%clk 0:00:08]} 64. b5 {[%clk 0:00:26]}  Rf1 {[%clk 0:00:08]} 65. b6 {[%clk 0:00:26]}  Rb1 {[%clk 0:00:08]} 66. Kc5 {[%clk 0:00:26]}  Kh3 {[%clk 0:00:08]} 67. Rh7+ {[%clk 0:00:25]}  Kg2 {[%clk 0:00:07]} 68. b7 {[%clk 0:00:25]}  g3 {[%clk 0:00:07]} 69. Kc6 {[%clk 0:00:25]}  Kg1 {[%clk 0:00:07]} 70. Kc7 {[%clk 0:00:24]}  g2 {[%clk 0:00:07]} 71. Rh6 {[%clk 0:00:24]}  Rxb7+ {[%clk 0:00:06]} 72. Kxb7 {[%clk 0:00:23]}  Kf1 {[%clk 0:00:05]} 73. Rf6+ {[%clk 0:00:24]}  Ke1 {[%clk 0:00:05]} 74. Rg6 {[%clk 0:00:23]}  Kf1 {[%clk 0:00:05]} 75. Rxg2 {[%clk 0:00:24]}  Kxg2 {[%clk 0:00:05]} 1/2-1/2


[Site "https://www.chess.com"]

[Event "Titled Tuesday Blitz November 08 Early 2022"]
[White "Estrada Nieto, Julian"]
[Black "Peyrer, Konstantin"]
[WhiteFideId "5101018"]
[BlackFideId "1640879"]
[WhiteElo "2221"]
[BlackElo "2415"]
[Result "0-1"]
[Round "03"]
[TimeControl "180+1"]
[Date "2022.11.09"]
[WhiteClock "0:01:42"]
[BlackClock "0:02:11"]

1. e4 {[%clk 0:03:00]}  c6 {[%clk 0:03:00]} 2. d4 {[%clk 0:03:00]}  d5 {[%clk 0:03:00]} 3. Nd2 {[%clk 0:02:59]}  dxe4 {[%clk 0:03:00]} 4. Nxe4 {[%clk 0:03:00]}  Nd7 {[%clk 0:03:01]} 5. Nf3 {[%clk 0:02:54]}  Ngf6 {[%clk 0:02:59]} 6. Neg5 {[%clk 0:02:54]}  e6 {[%clk 0:02:54]} 7. Bd3 {[%clk 0:02:54]}  Bd6 {[%clk 0:02:47]} 8. Qe2 {[%clk 0:02:53]}  Qe7 {[%clk 0:02:40]} 9. Bd2 {[%clk 0:02:50]}  h6 {[%clk 0:02:39]} 10. Ne4 {[%clk 0:02:49]}  Nxe4 {[%clk 0:02:37]} 11. Qxe4 {[%clk 0:02:43]}  Nf6 {[%clk 0:02:37]} 12. Qe2 {[%clk 0:02:43]}  Bd7 {[%clk 0:02:36]} 13. Ne5 {[%clk 0:02:39]}  a5 {[%clk 0:02:21]} 14. O-O {[%clk 0:02:36]}  O-O {[%clk 0:02:21]} 15. f4 {[%clk 0:02:28]}  Rfd8 {[%clk 0:02:19]} 16. c4 {[%clk 0:02:22]}  Be8 {[%clk 0:02:18]} 17. Bc3 {[%clk 0:02:14]}  c5 {[%clk 0:02:17]} 18. dxc5 {[%clk 0:02:05]}  Bxc5+ {[%clk 0:02:18]} 19. Kh1 {[%clk 0:02:04]}  Bd4 {[%clk 0:02:17]} 20. Bxd4 {[%clk 0:01:53]}  Rxd4 {[%clk 0:02:17]} 21. Rad1 {[%clk 0:01:53]}  Rad8 {[%clk 0:02:14]} 22. Bc2 {[%clk 0:01:52]}  Qb4 {[%clk 0:02:13]} 23. b3 {[%clk 0:01:42]}  Rd2 {[%clk 0:02:12]} 24. Rxd2 {[%clk 0:01:42]}  Rxd2 {[%clk 0:02:11]} 0-1


[Site "https://www.chess.com"]

[Event "Titled Tuesday Blitz November 08 Early 2022"]
[White "Fajdetic, Hrvoje"]
[Black "Forgacs, Attila Jr."]
[WhiteFideId "14501945"]
[BlackFideId "773654"]
[WhiteElo "2172"]
[BlackElo "2168"]
[Result "0-1"]
[Round "03"]
[TimeControl "180+1"]
[Date "2022.11.09"]
[WhiteClock "0:00:01"]
[BlackClock "0:00:07"]

1. d4 {[%clk 0:02:57]}  Nf6 {[%clk 0:02:59]} 2. Bf4 {[%clk 0:02:57]}  g6 {[%clk 0:02:58]} 3. Nc3 {[%clk 0:02:57]}  d5 {[%clk 0:02:58]} 4. e3 {[%clk 0:02:57]}  Bg7 {[%clk 0:02:58]} 5. h4 {[%clk 0:02:57]}  h5 {[%clk 0:02:57]} 6. Nf3 {[%clk 0:02:55]}  O-O {[%clk 0:02:53]} 7. Ne5 {[%clk 0:02:53]}  c5 {[%clk 0:02:53]} 8. Be2 {[%clk 0:02:50]}  cxd4 {[%clk 0:02:52]} 9. exd4 {[%clk 0:02:51]}  Nc6 {[%clk 0:02:52]} 10. Qd2 {[%clk 0:02:49]}  Bf5 {[%clk 0:02:44]} 11. a3 {[%clk 0:02:46]}  Rc8 {[%clk 0:02:43]} 12. f3 {[%clk 0:02:46]}  Qb6 {[%clk 0:02:34]} 13. O-O-O {[%clk 0:02:45]}  Nxe5 {[%clk 0:01:58]} 14. dxe5 {[%clk 0:02:37]}  Nd7 {[%clk 0:01:39]} 15. Qxd5 {[%clk 0:02:07]}  Rfd8 {[%clk 0:01:30]} 16. Qd4 {[%clk 0:01:53]}  Nc5 {[%clk 0:01:22]} 17. Qe3 {[%clk 0:01:42]}  Nb3+ {[%clk 0:00:59]} 18. cxb3 {[%clk 0:01:18]}  Qxb3 {[%clk 0:01:00]} 19. Rxd8+ {[%clk 0:01:04]}  Rxd8 {[%clk 0:00:55]} 20. Ne4 {[%clk 0:01:04]}  Rc8+ {[%clk 0:00:46]} 21. Kb1 {[%clk 0:01:04]}  Qc2+ {[%clk 0:00:41]} 22. Ka1 {[%clk 0:01:01]}  Qa4 {[%clk 0:00:26]} 23. Rc1 {[%clk 0:00:48]}  Rxc1+ {[%clk 0:00:25]} 24. Qxc1 {[%clk 0:00:48]}  Bxe4 {[%clk 0:00:25]} 25. fxe4 {[%clk 0:00:44]}  Qxe4 {[%clk 0:00:26]} 26. Bf3 {[%clk 0:00:42]}  Qd3 {[%clk 0:00:27]} 27. Bxb7 {[%clk 0:00:34]}  Kh7 {[%clk 0:00:27]} 28. Qe3 {[%clk 0:00:27]}  Qd1+ {[%clk 0:00:25]} 29. Ka2 {[%clk 0:00:27]}  Qg4 {[%clk 0:00:26]} 30. Bf3 {[%clk 0:00:26]}  Qe6+ {[%clk 0:00:26]} 31. b3 {[%clk 0:00:23]}  Qf5 {[%clk 0:00:26]} 32. a4 {[%clk 0:00:22]}  Qc2+ {[%clk 0:00:26]} 33. Ka3 {[%clk 0:00:23]}  e6 {[%clk 0:00:26]} 34. b4 {[%clk 0:00:10]}  a5 {[%clk 0:00:23]} 35. Qb3 {[%clk 0:00:09]}  axb4+ {[%clk 0:00:18]} 36. Qxb4 {[%clk 0:00:06]}  Qc8 {[%clk 0:00:16]} 37. Qb3 {[%clk 0:00:06]}  Bf8+ {[%clk 0:00:15]} 38. Ka2 {[%clk 0:00:06]}  Qc5 {[%clk 0:00:15]} 39. Bd2 {[%clk 0:00:03]}  Qf2 {[%clk 0:00:14]} 40. Qb2 {[%clk 0:00:02]}  Qc5 {[%clk 0:00:12]} 41. a5 {[%clk 0:00:02]}  Be7 {[%clk 0:00:10]} 42. a6 {[%clk 0:00:01]}  Qa7 {[%clk 0:00:07]} 43. Bb4 {[%clk 0:00:01]}  Qxa6+ {[%clk 0:00:07]} 0-1


[Site "https://www.chess.com"]

[Event "Titled Tuesday Blitz November 08 Early 2022"]
[White "Fawzy, Adham"]
[Black "Santos Flores, Alberto"]
[WhiteFideId "10613129"]
[BlackFideId "3601234"]
[WhiteElo "2541"]
[BlackElo "2235"]
[Result "1/2-1/2"]
[Round "03"]
[TimeControl "180+1"]
[Date "2022.11.09"]
[WhiteClock "0:00:05"]
[BlackClock "0:00:10"]

1. e4 {[%clk 0:03:00]}  c5 {[%clk 0:02:58]} 2. Nf3 {[%clk 0:03:00]}  Nc6 {[%clk 0:02:58]} 3. Bb5 {[%clk 0:03:00]}  g6 {[%clk 0:02:57]} 4. O-O {[%clk 0:03:01]}  Bg7 {[%clk 0:02:57]} 5. c3 {[%clk 0:03:01]}  Nf6 {[%clk 0:02:56]} 6. Re1 {[%clk 0:03:00]}  O-O {[%clk 0:02:55]} 7. d4 {[%clk 0:03:00]}  cxd4 {[%clk 0:02:56]} 8. cxd4 {[%clk 0:03:01]}  d5 {[%clk 0:02:56]} 9. e5 {[%clk 0:03:01]}  Ne4 {[%clk 0:02:56]} 10. Nc3 {[%clk 0:02:55]}  Nxc3 {[%clk 0:02:54]} 11. bxc3 {[%clk 0:02:56]}  Bg4 {[%clk 0:02:53]} 12. h3 {[%clk 0:02:54]}  Bxf3 {[%clk 0:02:52]} 13. Qxf3 {[%clk 0:02:55]}  e6 {[%clk 0:02:52]} 14. Bf4 {[%clk 0:02:19]}  Rc8 {[%clk 0:02:50]} 15. Bd3 {[%clk 0:02:17]}  Na5 {[%clk 0:02:47]} 16. Rac1 {[%clk 0:02:16]}  Rc6 {[%clk 0:02:37]} 17. g3 {[%clk 0:01:56]}  Nc4 {[%clk 0:02:34]} 18. h4 {[%clk 0:01:52]}  Qa5 {[%clk 0:02:32]} 19. h5 {[%clk 0:01:40]}  Rfc8 {[%clk 0:02:29]} 20. Kg2 {[%clk 0:01:16]}  Nb2 {[%clk 0:02:26]} 21. Bd2 {[%clk 0:00:54]}  Nxd3 {[%clk 0:02:24]} 22. Qxd3 {[%clk 0:00:55]}  Qxa2 {[%clk 0:02:19]} 23. Ra1 {[%clk 0:00:46]}  Qc4 {[%clk 0:02:17]} 24. Qxc4 {[%clk 0:00:44]}  Rxc4 {[%clk 0:02:16]} 25. Rxa7 {[%clk 0:00:45]}  b5 {[%clk 0:02:14]} 26. Rb1 {[%clk 0:00:41]}  Rb8 {[%clk 0:02:10]} 27. Rd7 {[%clk 0:00:22]}  b4 {[%clk 0:02:07]} 28. Rxb4 {[%clk 0:00:13]}  Rcc8 {[%clk 0:02:02]} 29. Rbb7 {[%clk 0:00:11]}  Rxb7 {[%clk 0:02:01]} 30. Rxb7 {[%clk 0:00:12]}  gxh5 {[%clk 0:01:58]} 31. f4 {[%clk 0:00:10]}  Bf8 {[%clk 0:01:58]} 32. Kf3 {[%clk 0:00:10]}  Kg7 {[%clk 0:01:57]} 33. Ke3 {[%clk 0:00:09]}  Kg6 {[%clk 0:01:57]} 34. Rb1 {[%clk 0:00:09]}  Ra8 {[%clk 0:01:56]} 35. Rh1 {[%clk 0:00:09]}  Ra2 {[%clk 0:01:53]} 36. Kd3 {[%clk 0:00:06]}  Be7 {[%clk 0:01:51]} 37. Ke3 {[%clk 0:00:03]}  Ra8 {[%clk 0:01:43]} 38. Kf3 {[%clk 0:00:03]}  Ba3 {[%clk 0:01:40]} 39. g4 {[%clk 0:00:03]}  hxg4+ {[%clk 0:01:39]} 40. Kxg4 {[%clk 0:00:04]}  Bb2 {[%clk 0:01:34]} 41. Rb1 {[%clk 0:00:03]}  Ba1 {[%clk 0:01:30]} 42. Kf3 {[%clk 0:00:02]}  Ra3 {[%clk 0:01:29]} 43. Rg1+ {[%clk 0:00:02]}  Kh5 {[%clk 0:01:22]} 44. Rh1+ {[%clk 0:00:01]}  Kg6 {[%clk 0:01:22]} 45. Rg1+ {[%clk 0:00:02]}  Kh5 {[%clk 0:01:11]} 46. Rh1+ {[%clk 0:00:03]}  Kg6 {[%clk 0:01:10]} 47. f5+ {[%clk 0:00:03]}  Kg7 {[%clk 0:00:43]} 48. f6+ {[%clk 0:00:02]}  Kh8 {[%clk 0:00:40]} 49. Rb1 {[%clk 0:00:02]}  h5 {[%clk 0:00:36]} 50. Kf4 {[%clk 0:00:02]}  Bxc3 {[%clk 0:00:33]} 51. Bxc3 {[%clk 0:00:01]}  Rxc3 {[%clk 0:00:32]} 52. Kg5 {[%clk 0:00:02]}  Rc8 {[%clk 0:00:19]} 53. Kxh5 {[%clk 0:00:02]}  Kg8 {[%clk 0:00:19]} 54. Kh6 {[%clk 0:00:02]}  Kf8 {[%clk 0:00:18]} 55. Rg1 {[%clk 0:00:02]}  Rc4 {[%clk 0:00:17]} 56. Rb1 {[%clk 0:00:03]}  Rc8 {[%clk 0:00:16]} 57. Rb7 {[%clk 0:00:02]}  Ke8 {[%clk 0:00:15]} 58. Ra7 {[%clk 0:00:02]}  Kf8 {[%clk 0:00:15]} 59. Rb7 {[%clk 0:00:03]}  Ra8 {[%clk 0:00:14]} 60. Kh7 {[%clk 0:00:03]}  Rc8 {[%clk 0:00:14]} 61. Ra7 {[%clk 0:00:03]}  Rb8 {[%clk 0:00:13]} 62. Kh6 {[%clk 0:00:03]}  Rc8 {[%clk 0:00:13]} 63. Kh7 {[%clk 0:00:04]}  Rb8 {[%clk 0:00:12]} 64. Kh8 {[%clk 0:00:04]}  Rc8 {[%clk 0:00:10]} 65. Kh7 {[%clk 0:00:05]} 1/2-1/2


[Site "https://www.chess.com"]

[Event "Titled Tuesday Blitz November 08 Early 2022"]
[White "Fernandez De La Vara, Arnaldo"]
[Black "Crevatin, Leo"]
[WhiteFideId "3518388"]
[BlackFideId "1726307"]
[WhiteElo "2387"]
[BlackElo "2208"]
[Result "1/2-1/2"]
[Round "03"]
[TimeControl "180+1"]
[Date "2022.11.09"]
[WhiteClock "0:00:05"]
[BlackClock "0:00:25"]

1. Nf3 {[%clk 0:03:00]}  d5 {[%clk 0:02:59]} 2. c4 {[%clk 0:03:00]}  c6 {[%clk 0:02:52]} 3. b3 {[%clk 0:03:00]}  Nf6 {[%clk 0:02:52]} 4. Bb2 {[%clk 0:03:01]}  Bf5 {[%clk 0:02:52]} 5. g3 {[%clk 0:02:59]}  e6 {[%clk 0:02:49]} 6. Bg2 {[%clk 0:03:00]}  Nbd7 {[%clk 0:02:48]} 7. Nh4 {[%clk 0:02:58]}  Be4 {[%clk 0:02:47]} 8. O-O {[%clk 0:02:55]}  Be7 {[%clk 0:02:42]} 9. d3 {[%clk 0:02:49]}  Bxg2 {[%clk 0:02:41]} 10. Kxg2 {[%clk 0:02:50]}  O-O {[%clk 0:02:41]} 11. Nf3 {[%clk 0:02:50]}  Bd6 {[%clk 0:02:37]} 12. Nc3 {[%clk 0:02:35]}  Qe7 {[%clk 0:02:33]} 13. Rc1 {[%clk 0:02:05]}  Rad8 {[%clk 0:02:30]} 14. Re1 {[%clk 0:02:01]}  Ba3 {[%clk 0:02:26]} 15. Qc2 {[%clk 0:02:00]}  a6 {[%clk 0:02:21]} 16. Rcd1 {[%clk 0:01:33]}  e5 {[%clk 0:02:20]} 17. e3 {[%clk 0:01:11]}  a5 {[%clk 0:02:05]} 18. cxd5 {[%clk 0:00:57]}  cxd5 {[%clk 0:01:55]} 19. Nb5 {[%clk 0:00:53]}  Bxb2 {[%clk 0:01:52]} 20. Qxb2 {[%clk 0:00:53]}  e4 {[%clk 0:01:14]} 21. dxe4 {[%clk 0:00:53]}  dxe4 {[%clk 0:01:15]} 22. Nfd4 {[%clk 0:00:54]}  Ne5 {[%clk 0:01:05]} 23. Nf5 {[%clk 0:00:50]}  Qe6 {[%clk 0:01:04]} 24. Nbd4 {[%clk 0:00:43]}  Qa6 {[%clk 0:00:48]} 25. Qa3 {[%clk 0:00:31]}  Nd3 {[%clk 0:00:43]} 26. Re2 {[%clk 0:00:31]}  g6 {[%clk 0:00:42]} 27. Ne7+ {[%clk 0:00:22]}  Kg7 {[%clk 0:00:41]} 28. Rc2 {[%clk 0:00:21]}  Rd7 {[%clk 0:00:34]} 29. Nef5+ {[%clk 0:00:15]}  gxf5 {[%clk 0:00:33]} 30. Nxf5+ {[%clk 0:00:16]}  Kg8 {[%clk 0:00:30]} 31. Nh6+ {[%clk 0:00:16]}  Kg7 {[%clk 0:00:31]} 32. Nf5+ {[%clk 0:00:16]}  Kg8 {[%clk 0:00:25]} 33. Nh6+ {[%clk 0:00:10]}  Kg7 {[%clk 0:00:25]} 34. Nf5+ {[%clk 0:00:05]} 1/2-1/2


[Site "https://www.chess.com"]

[Event "Titled Tuesday Blitz November 08 Early 2022"]
[White "Fernandez Guillen, Ernesto J."]
[Black "Anton Guijarro, David"]
[WhiteFideId "3512428"]
[BlackFideId "2285525"]
[WhiteElo "2450"]
[BlackElo "2579"]
[Result "0-1"]
[Round "03"]
[TimeControl "180+1"]
[Date "2022.11.08"]
[WhiteClock "0:01:20"]
[BlackClock "0:01:57"]

1. e4 {[%clk 0:03:00]}  c6 {[%clk 0:02:58]} 2. d4 {[%clk 0:03:00]}  d5 {[%clk 0:02:59]} 3. e5 {[%clk 0:03:00]}  Bf5 {[%clk 0:02:58]} 4. c3 {[%clk 0:03:00]}  e6 {[%clk 0:02:58]} 5. Bd3 {[%clk 0:02:58]}  Ne7 {[%clk 0:02:57]} 6. Ne2 {[%clk 0:02:57]}  c5 {[%clk 0:02:55]} 7. O-O {[%clk 0:02:57]}  Nbc6 {[%clk 0:02:51]} 8. Be3 {[%clk 0:02:55]}  Bxd3 {[%clk 0:02:47]} 9. Qxd3 {[%clk 0:02:55]}  Nf5 {[%clk 0:02:46]} 10. Nd2 {[%clk 0:02:41]}  Qb6 {[%clk 0:02:33]} 11. Nf3 {[%clk 0:02:17]}  cxd4 {[%clk 0:02:27]} 12. cxd4 {[%clk 0:02:05]}  Be7 {[%clk 0:02:26]} 13. g4 {[%clk 0:02:04]}  Nxe3 {[%clk 0:02:25]} 14. fxe3 {[%clk 0:02:05]}  O-O-O {[%clk 0:02:14]} 15. a3 {[%clk 0:01:57]}  f6 {[%clk 0:02:08]} 16. Rfc1 {[%clk 0:01:29]}  Kb8 {[%clk 0:02:06]} 17. b4 {[%clk 0:01:24]}  fxe5 {[%clk 0:02:04]} 18. dxe5 {[%clk 0:01:23]}  h5 {[%clk 0:01:59]} 19. g5 {[%clk 0:01:21]}  Rhf8 {[%clk 0:01:58]} 20. Nf4 {[%clk 0:01:20]}  Rxf4 {[%clk 0:01:57]} 0-1


[Site "https://www.chess.com"]